[Event "Titled Tuesday Blitz May 30 Early 2023"]
[White "Sahib Singh"]
[Black "Mazurkiewicz, Michal"]
[WhiteFideId "25618342"]
[BlackFideId "1124943"]
[WhiteElo "1934"]
[BlackElo "2054"]
[Result "1-0"]
[Round "02"]
[TimeControl "180+2"]
[Date "2023.05.30"]
[WhiteClock "0:00:37"]
[BlackClock "0:00:00"]

1. e4 {[%clk 0:03:00]}  d6 {[%clk 0:03:00]} 2. d4 {[%clk 0:02:58]}  Nf6 {[%clk 0:03:00]} 3. Nc3 {[%clk 0:02:58]}  c6 {[%clk 0:03:00]} 4. f4 {[%clk 0:02:54]}  Qb6 {[%clk 0:03:01]} 5. Nf3 {[%clk 0:02:54]}  Bg4 {[%clk 0:03:01]} 6. Be2 {[%clk 0:02:54]}  e6 {[%clk 0:03:01]} 7. h3 {[%clk 0:02:53]}  Bxf3 {[%clk 0:03:01]} 8. Bxf3 {[%clk 0:02:54]}  d5 {[%clk 0:03:01]} 9. e5 {[%clk 0:02:54]}  Nfd7 {[%clk 0:03:02]} 10. a3 {[%clk 0:02:47]}  c5 {[%clk 0:02:59]} 11. Na4 {[%clk 0:02:36]}  Qa5+ {[%clk 0:02:58]} 12. c3 {[%clk 0:02:35]}  cxd4 {[%clk 0:02:52]} 13. b4 {[%clk 0:02:35]}  Qc7 {[%clk 0:02:03]} 14. cxd4 {[%clk 0:02:34]}  Nc6 {[%clk 0:02:03]} 15. Be3 {[%clk 0:02:32]}  b5 {[%clk 0:01:57]} 16. Nc5 {[%clk 0:02:30]}  Nxc5 {[%clk 0:01:55]} 17. dxc5 {[%clk 0:02:23]}  Be7 {[%clk 0:01:42]} 18. O-O {[%clk 0:02:21]}  O-O {[%clk 0:01:38]} 19. Be2 {[%clk 0:02:19]}  Rfb8 {[%clk 0:01:38]} 20. Bg4 {[%clk 0:02:12]}  g6 {[%clk 0:01:37]} 21. Qd3 {[%clk 0:02:05]}  a5 {[%clk 0:01:36]} 22. Bd2 {[%clk 0:02:03]}  axb4 {[%clk 0:01:21]} 23. axb4 {[%clk 0:02:04]}  Ra4 {[%clk 0:01:22]} 24. Rfb1 {[%clk 0:01:44]}  Qa7 {[%clk 0:01:15]} 25. Rxa4 {[%clk 0:01:40]}  Qxa4 {[%clk 0:01:16]} 26. Bd1 {[%clk 0:01:38]}  Qa2 {[%clk 0:01:13]} 27. Bb3 {[%clk 0:01:36]}  Qa3 {[%clk 0:01:07]} 28. Bc2 {[%clk 0:01:02]}  Qa2 {[%clk 0:01:07]} 29. Bc3 {[%clk 0:01:00]}  Qc4 {[%clk 0:01:06]} 30. Qxc4 {[%clk 0:01:00]}  bxc4 {[%clk 0:01:05]} 31. b5 {[%clk 0:00:59]}  Bxc5+ {[%clk 0:01:04]} 32. Kf1 {[%clk 0:00:59]}  Nd4 {[%clk 0:01:02]} 33. Ba4 {[%clk 0:00:58]}  Nf5 {[%clk 0:01:00]} 34. Ba5 {[%clk 0:00:58]}  Ne3+ {[%clk 0:00:59]} 35. Ke2 {[%clk 0:00:58]}  Nxg2 {[%clk 0:00:53]} 36. b6 {[%clk 0:00:48]}  Nxf4+ {[%clk 0:00:52]} 37. Kf3 {[%clk 0:00:48]}  Nd3 {[%clk 0:00:42]} 38. b7 {[%clk 0:00:44]}  Nxe5+ {[%clk 0:00:42]} 39. Ke2 {[%clk 0:00:44]}  Bd6 {[%clk 0:00:43]} 40. Bc3 {[%clk 0:00:37]}  Kf8 {[%clk 0:00:38]} 41. Bd4 {[%clk 0:00:37]}  Ke7 {[%clk 0:00:37]} 42. Ba7 {[%clk 0:00:38]}  Kd8 {[%clk 0:00:15]} 43. Rb6 {[%clk 0:00:38]}  Kc7 {[%clk 0:00:14]} 44. Bxb8+ {[%clk 0:00:35]}  Kxb6 {[%clk 0:00:13]} 45. Bxd6 {[%clk 0:00:34]}  Kxb7 {[%clk 0:00:08]} 46. Bxe5 {[%clk 0:00:35]}  Kb6 {[%clk 0:00:08]} 47. Bf6 {[%clk 0:00:35]}  Kc5 {[%clk 0:00:08]} 48. Ke3 {[%clk 0:00:36]}  Kd6 {[%clk 0:00:07]} 49. Kd4 {[%clk 0:00:36]}  Kc7 {[%clk 0:00:06]} 50. Be8 {[%clk 0:00:35]}  Kd6 {[%clk 0:00:06]} 51. Bxf7 {[%clk 0:00:35]}  c3 {[%clk 0:00:04]} 52. Kxc3 {[%clk 0:00:35]}  e5 {[%clk 0:00:04]} 53. Bg8 {[%clk 0:00:35]}  h6 {[%clk 0:00:04]} 54. Bg7 {[%clk 0:00:35]}  h5 {[%clk 0:00:03]} 55. Bf8+ {[%clk 0:00:35]}  Kd7 {[%clk 0:00:02]} 56. Bxd5 {[%clk 0:00:35]}  g5 {[%clk 0:00:02]} 57. Bf3 {[%clk 0:00:34]}  g4 {[%clk 0:00:02]} 58. hxg4 {[%clk 0:00:35]}  hxg4 {[%clk 0:00:02]} 59. Bxg4+ {[%clk 0:00:36]}  Kc6 {[%clk 0:00:03]} 60. Kd3 {[%clk 0:00:37]}  Kd5 {[%clk 0:00:03]} 61. Ke3 {[%clk 0:00:37]}  e4 {[%clk 0:00:00]} 62. Bg7 {[%clk 0:00:37]} 1-0


[Site "https://www.chess.com"]

[Event "Titled Tuesday Blitz May 30 Early 2023"]
[White "Mogirzan, Matei-Valeriu"]
[Black "Levitskiy, Andrey"]
[WhiteFideId "1257455"]
[BlackFideId "14132885"]
[WhiteElo "1733"]
[BlackElo "2347"]
[Result "1/2-1/2"]
[Round "02"]
[TimeControl "180+2"]
[Date "2023.05.30"]
[WhiteClock "0:00:20"]
[BlackClock "0:00:06"]

1. e4 {[%clk 0:03:00]}  e6 {[%clk 0:02:59]} 2. d4 {[%clk 0:03:00]}  d5 {[%clk 0:02:59]} 3. Nd2 {[%clk 0:03:01]}  c5 {[%clk 0:02:59]} 4. c3 {[%clk 0:03:01]}  cxd4 {[%clk 0:02:54]} 5. cxd4 {[%clk 0:03:02]}  dxe4 {[%clk 0:02:48]} 6. Nxe4 {[%clk 0:03:03]}  Bb4+ {[%clk 0:02:47]} 7. Nc3 {[%clk 0:03:03]}  Nc6 {[%clk 0:02:46]} 8. Nf3 {[%clk 0:03:03]}  Nf6 {[%clk 0:02:42]} 9. a3 {[%clk 0:03:03]}  Be7 {[%clk 0:02:29]} 10. Bd3 {[%clk 0:03:02]}  O-O {[%clk 0:02:30]} 11. Bg5 {[%clk 0:03:02]}  h6 {[%clk 0:02:17]} 12. h4 {[%clk 0:03:01]}  Kh8 {[%clk 0:01:56]} 13. Qe2 {[%clk 0:01:54]}  Nd5 {[%clk 0:01:32]} 14. Qd2 {[%clk 0:01:40]}  Nf6 {[%clk 0:00:14]} 15. Bxh6 {[%clk 0:01:32]}  Nxd4 {[%clk 0:00:15]} 16. Bxg7+ {[%clk 0:01:07]}  Kxg7 {[%clk 0:00:14]} 17. Qg5+ {[%clk 0:01:07]}  Kh8 {[%clk 0:00:14]} 18. Qh6+ {[%clk 0:01:05]}  Kg8 {[%clk 0:00:14]} 19. Rh3 {[%clk 0:00:47]}  Nf5 {[%clk 0:00:05]} 20. Rg3+ {[%clk 0:00:18]}  Nxg3 {[%clk 0:00:04]} 21. Qg5+ {[%clk 0:00:18]}  Kh8 {[%clk 0:00:04]} 22. Qh6+ {[%clk 0:00:18]}  Kg8 {[%clk 0:00:05]} 23. Qg5+ {[%clk 0:00:19]}  Kh8 {[%clk 0:00:05]} 24. Qh6+ {[%clk 0:00:20]}  Kg8 {[%clk 0:00:06]} 1/2-1/2


[Site "https://www.chess.com"]

[Event "Titled Tuesday Blitz May 30 Early 2023"]
[White "Goldin, Roman"]
[Black "Bolourchifard, Farzad"]
[WhiteFideId "2803860"]
[BlackFideId "12510084"]
[WhiteElo "2312"]
[BlackElo "2317"]
[Result "1/2-1/2"]
[Round "02"]
[TimeControl "180+2"]
[Date "2023.05.30"]
[WhiteClock "0:00:03"]
[BlackClock "0:00:06"]

1. e4 {[%clk 0:03:00]}  e5 {[%clk 0:02:59]} 2. Nf3 {[%clk 0:03:00]}  Nc6 {[%clk 0:03:00]} 3. Nc3 {[%clk 0:03:00]}  Nf6 {[%clk 0:03:00]} 4. g3 {[%clk 0:03:00]}  d6 {[%clk 0:02:56]} 5. Bg2 {[%clk 0:02:59]}  g6 {[%clk 0:02:52]} 6. d4 {[%clk 0:02:59]}  exd4 {[%clk 0:02:52]} 7. Nxd4 {[%clk 0:02:59]}  Bg7 {[%clk 0:02:52]} 8. Nxc6 {[%clk 0:02:58]}  bxc6 {[%clk 0:02:52]} 9. e5 {[%clk 0:02:53]}  Nd7 {[%clk 0:02:43]} 10. exd6 {[%clk 0:02:49]}  O-O {[%clk 0:02:43]} 11. O-O {[%clk 0:02:42]}  cxd6 {[%clk 0:02:25]} 12. Qxd6 {[%clk 0:02:36]}  Rb8 {[%clk 0:02:21]} 13. Rd1 {[%clk 0:02:05]}  Qb6 {[%clk 0:01:47]} 14. Na4 {[%clk 0:01:51]}  Qb5 {[%clk 0:01:39]} 15. Bxc6 {[%clk 0:01:47]}  Qa5 {[%clk 0:01:24]} 16. Bxd7 {[%clk 0:01:37]}  Bxd7 {[%clk 0:01:23]} 17. Qxd7 {[%clk 0:00:57]}  Rfd8 {[%clk 0:01:22]} 18. Bd2 {[%clk 0:00:51]}  Qa6 {[%clk 0:00:55]} 19. Qg4 {[%clk 0:00:18]}  Rd4 {[%clk 0:00:54]} 20. Bf4 {[%clk 0:00:13]}  Qxa4 {[%clk 0:00:41]} 21. b3 {[%clk 0:00:05]}  Qb4 {[%clk 0:00:25]} 22. a3 {[%clk 0:00:05]}  Qb6 {[%clk 0:00:23]} 23. Rxd4 {[%clk 0:00:04]}  Bxd4 {[%clk 0:00:24]} 24. Rf1 {[%clk 0:00:04]}  Re8 {[%clk 0:00:20]} 25. Bd2 {[%clk 0:00:01]}  Qc5 {[%clk 0:00:19]} 26. c4 {[%clk 0:00:01]}  h5 {[%clk 0:00:18]} 27. Bb4 {[%clk 0:00:02]}  Qxb4 {[%clk 0:00:18]} 28. Qxd4 {[%clk 0:00:01]}  Qxa3 {[%clk 0:00:18]} 29. c5 {[%clk 0:00:02]}  Qxb3 {[%clk 0:00:18]} 30. Rc1 {[%clk 0:00:02]}  Qa3 {[%clk 0:00:18]} 31. Rc3 {[%clk 0:00:01]}  Qa1+ {[%clk 0:00:18]} 32. Kg2 {[%clk 0:00:02]}  Re1 {[%clk 0:00:15]} 33. c6 {[%clk 0:00:02]}  Rg1+ {[%clk 0:00:15]} 34. Kf3 {[%clk 0:00:02]}  Qa5 {[%clk 0:00:11]} 35. c7 {[%clk 0:00:01]}  Qf5+ {[%clk 0:00:11]} 36. Ke2 {[%clk 0:00:01]}  Qe6+ {[%clk 0:00:08]} 37. Qe3 {[%clk 0:00:02]}  Qa6+ {[%clk 0:00:08]} 38. Qd3 {[%clk 0:00:02]}  Qe6+ {[%clk 0:00:07]} 39. Qe3 {[%clk 0:00:02]}  Qa6+ {[%clk 0:00:06]} 40. Kf3 {[%clk 0:00:02]}  Qb7+ {[%clk 0:00:06]} 41. Ke2 {[%clk 0:00:03]}  Qa6+ {[%clk 0:00:06]} 1/2-1/2


[Site "https://www.chess.com"]

[Event "Titled Tuesday Blitz May 30 Early 2023"]
[White "Avalos Parra, Joao"]
[Black "Jeet, Jain"]
[WhiteFideId "3402541"]
[BlackFideId "5073022"]
[WhiteElo "2173"]
[BlackElo "2067"]
[Result "0-1"]
[Round "02"]
[TimeControl "180+2"]
[Date "2023.05.30"]
[WhiteClock "0:00:00"]
[BlackClock "0:00:12"]

1. d4 {[%clk 0:03:00]}  d5 {[%clk 0:02:56]} 2. c4 {[%clk 0:03:01]}  c6 {[%clk 0:02:56]} 3. Nf3 {[%clk 0:03:01]}  Nf6 {[%clk 0:02:56]} 4. Nc3 {[%clk 0:03:00]}  e6 {[%clk 0:02:54]} 5. Bg5 {[%clk 0:03:00]}  Nbd7 {[%clk 0:02:53]} 6. e3 {[%clk 0:02:58]}  Be7 {[%clk 0:02:51]} 7. Be2 {[%clk 0:02:55]}  h6 {[%clk 0:02:51]} 8. Bh4 {[%clk 0:02:55]}  O-O {[%clk 0:02:51]} 9. O-O {[%clk 0:02:55]}  Ne4 {[%clk 0:02:51]} 10. Bxe7 {[%clk 0:02:52]}  Qxe7 {[%clk 0:02:52]} 11. Nxe4 {[%clk 0:02:46]}  dxe4 {[%clk 0:02:53]} 12. Nd2 {[%clk 0:02:46]}  f5 {[%clk 0:02:53]} 13. f3 {[%clk 0:02:41]}  exf3 {[%clk 0:02:53]} 14. Nxf3 {[%clk 0:02:39]}  e5 {[%clk 0:02:53]} 15. Re1 {[%clk 0:02:36]}  e4 {[%clk 0:02:52]} 16. Nd2 {[%clk 0:02:37]}  c5 {[%clk 0:02:45]} 17. Nb3 {[%clk 0:02:37]}  cxd4 {[%clk 0:02:44]} 18. Qxd4 {[%clk 0:02:32]}  Ne5 {[%clk 0:02:41]} 19. Rad1 {[%clk 0:02:27]}  Kh8 {[%clk 0:02:35]} 20. Nd2 {[%clk 0:02:28]}  Bd7 {[%clk 0:02:32]} 21. Nf1 {[%clk 0:02:28]}  Bc6 {[%clk 0:02:29]} 22. Qd6 {[%clk 0:02:27]}  Qe8 {[%clk 0:02:23]} 23. Bh5 {[%clk 0:02:19]}  g6 {[%clk 0:01:53]} 24. Be2 {[%clk 0:02:12]}  Kg7 {[%clk 0:01:48]} 25. b4 {[%clk 0:01:57]}  Rf6 {[%clk 0:01:43]} 26. Qc7+ {[%clk 0:01:54]}  Rf7 {[%clk 0:01:44]} 27. Qa5 {[%clk 0:01:51]}  b6 {[%clk 0:01:41]} 28. Qa3 {[%clk 0:01:51]}  g5 {[%clk 0:01:35]} 29. b5 {[%clk 0:01:50]}  Bb7 {[%clk 0:01:34]} 30. c5 {[%clk 0:01:47]}  bxc5 {[%clk 0:01:33]} 31. Qxc5 {[%clk 0:01:47]}  f4 {[%clk 0:01:34]} 32. Bc4 {[%clk 0:01:40]}  Nxc4 {[%clk 0:01:16]} 33. Qxc4 {[%clk 0:01:40]}  f3 {[%clk 0:01:17]} 34. gxf3 {[%clk 0:01:38]}  exf3 {[%clk 0:01:18]} 35. Kf2 {[%clk 0:01:35]}  Rc8 {[%clk 0:01:10]} 36. Qd4+ {[%clk 0:01:35]}  Kg8 {[%clk 0:01:10]} 37. Rd2 {[%clk 0:01:34]}  Qxb5 {[%clk 0:01:10]} 38. Qxa7 {[%clk 0:01:29]}  Qe5 {[%clk 0:01:08]} 39. Qd4 {[%clk 0:01:24]}  Qe6 {[%clk 0:01:08]} 40. Qd6 {[%clk 0:01:12]}  Qh3 {[%clk 0:01:07]} 41. Qg3 {[%clk 0:01:13]}  Qg2+ {[%clk 0:01:04]} 42. Qxg2 {[%clk 0:01:03]}  fxg2+ {[%clk 0:01:05]} 43. Kg1 {[%clk 0:01:02]}  gxf1=Q+ {[%clk 0:01:05]} 44. Rxf1 {[%clk 0:01:03]}  Rxf1+ {[%clk 0:01:01]} 45. Kxf1 {[%clk 0:01:03]}  Be4 {[%clk 0:01:02]} 46. Rd4 {[%clk 0:00:29]}  Bg6 {[%clk 0:00:40]} 47. a4 {[%clk 0:00:28]}  Rc2 {[%clk 0:00:39]} 48. a5 {[%clk 0:00:27]}  Ra2 {[%clk 0:00:39]} 49. Rd6 {[%clk 0:00:25]}  Kg7 {[%clk 0:00:37]} 50. a6 {[%clk 0:00:26]}  Rxa6 {[%clk 0:00:34]} 51. Rd7+ {[%clk 0:00:21]}  Bf7 {[%clk 0:00:34]} 52. Kf2 {[%clk 0:00:22]}  Ra2+ {[%clk 0:00:33]} 53. Kg3 {[%clk 0:00:22]}  Kf6 {[%clk 0:00:31]} 54. Rd6+ {[%clk 0:00:22]}  Be6 {[%clk 0:00:30]} 55. Rb6 {[%clk 0:00:22]}  h5 {[%clk 0:00:31]} 56. h4 {[%clk 0:00:21]}  g4 {[%clk 0:00:23]} 57. Rb5 {[%clk 0:00:22]}  Ra3 {[%clk 0:00:17]} 58. Rxh5 {[%clk 0:00:19]}  Rxe3+ {[%clk 0:00:17]} 59. Kf4 {[%clk 0:00:19]}  Rf3+ {[%clk 0:00:17]} 60. Ke4 {[%clk 0:00:20]}  Rf1 {[%clk 0:00:16]} 61. Rh6+ {[%clk 0:00:19]}  Ke7 {[%clk 0:00:15]} 62. h5 {[%clk 0:00:13]}  g3 {[%clk 0:00:13]} 63. Rh7+ {[%clk 0:00:10]}  Kf8 {[%clk 0:00:13]} 64. Ke5 {[%clk 0:00:05]}  g2 {[%clk 0:00:12]} 65. Kxe6 {[%clk 0:00:00]}  g1=Q {[%clk 0:00:12]} 0-1


[Site "https://www.chess.com"]

[Event "Titled Tuesday Blitz May 30 Early 2023"]
[White "Jia, Haoxiang"]
[Black "Kazmin_Semyon"]
[WhiteFideId "8602999"]
[WhiteElo "2656"]
[BlackElo "2329"]
[Result "0-1"]
[Round "02"]
[TimeControl "180+2"]
[Date "2023.05.30"]
[WhiteClock "0:00:16"]
[BlackClock "0:00:04"]

1. d4 {[%clk 0:03:00]}  Nf6 {[%clk 0:02:56]} 2. c4 {[%clk 0:03:00]}  g6 {[%clk 0:02:47]} 3. f3 {[%clk 0:02:58]}  e5 {[%clk 0:02:40]} 4. dxe5 {[%clk 0:02:53]}  Nh5 {[%clk 0:02:39]} 5. Nh3 {[%clk 0:02:43]}  Qh4+ {[%clk 0:02:33]} 6. Nf2 {[%clk 0:02:43]}  Bc5 {[%clk 0:02:21]} 7. e3 {[%clk 0:02:36]}  Nc6 {[%clk 0:02:19]} 8. Nc3 {[%clk 0:02:30]}  Nxe5 {[%clk 0:02:08]} 9. Ne4 {[%clk 0:02:26]}  Bb4+ {[%clk 0:01:39]} 10. Bd2 {[%clk 0:02:25]}  Qe7 {[%clk 0:01:39]} 11. a3 {[%clk 0:02:15]}  Bxd2+ {[%clk 0:01:37]} 12. Qxd2 {[%clk 0:02:16]}  d6 {[%clk 0:01:34]} 13. Be2 {[%clk 0:02:13]}  Be6 {[%clk 0:01:29]} 14. Rc1 {[%clk 0:02:10]}  O-O-O {[%clk 0:01:28]} 15. c5 {[%clk 0:01:39]}  d5 {[%clk 0:01:28]} 16. Ng3 {[%clk 0:01:32]}  Ng7 {[%clk 0:01:19]} 17. Qc3 {[%clk 0:01:07]}  f6 {[%clk 0:01:15]} 18. O-O {[%clk 0:01:06]}  h5 {[%clk 0:01:15]} 19. c6 {[%clk 0:01:05]}  Nxc6 {[%clk 0:01:12]} 20. Nd3 {[%clk 0:01:06]}  d4 {[%clk 0:01:10]} 21. exd4 {[%clk 0:01:05]}  Nxd4 {[%clk 0:01:11]} 22. Rfe1 {[%clk 0:01:03]}  h4 {[%clk 0:01:03]} 23. Nf1 {[%clk 0:01:01]}  h3 {[%clk 0:00:56]} 24. g3 {[%clk 0:01:01]}  Bf5 {[%clk 0:00:50]} 25. Nf4 {[%clk 0:00:51]}  Kb8 {[%clk 0:00:44]} 26. Bc4 {[%clk 0:00:34]}  Qc5 {[%clk 0:00:40]} 27. Kh1 {[%clk 0:00:32]}  g5 {[%clk 0:00:35]} 28. b4 {[%clk 0:00:32]}  Qc6 {[%clk 0:00:34]} 29. Nd5 {[%clk 0:00:28]}  Rxd5 {[%clk 0:00:15]} 30. Bxd5 {[%clk 0:00:28]}  Qxd5 {[%clk 0:00:16]} 31. Qxc7+ {[%clk 0:00:28]}  Ka8 {[%clk 0:00:17]} 32. Re4 {[%clk 0:00:29]}  Rb8 {[%clk 0:00:14]} 33. Ne3 {[%clk 0:00:29]}  Qa2 {[%clk 0:00:12]} 34. Rxd4 {[%clk 0:00:27]}  a6 {[%clk 0:00:06]} 35. Qxg7 {[%clk 0:00:26]}  Qf2 {[%clk 0:00:06]} 36. Qe7 {[%clk 0:00:22]}  Qxf3+ {[%clk 0:00:03]} 37. Kg1 {[%clk 0:00:22]}  Ka7 {[%clk 0:00:02]} 38. Qc5+ {[%clk 0:00:21]}  Ka8 {[%clk 0:00:02]} 39. Rd2 {[%clk 0:00:20]}  Be4 {[%clk 0:00:02]} 40. Ng2 {[%clk 0:00:17]}  hxg2 {[%clk 0:00:02]} 41. Qf2 {[%clk 0:00:18]}  Qh5 {[%clk 0:00:02]} 42. Re1 {[%clk 0:00:17]}  Qxh2+ {[%clk 0:00:02]} 43. Kxh2 {[%clk 0:00:16]}  Rh8+ {[%clk 0:00:03]} 44. Kg1 {[%clk 0:00:16]}  Rh1# {[%clk 0:00:04]} 0-1


[Site "https://www.chess.com"]

[Event "Titled Tuesday Blitz May 30 Early 2023"]
[White "Rose, Felix"]
[Black "Williams, Simon K"]
[WhiteFideId "5105722"]
[BlackFideId "404454"]
[WhiteElo "2039"]
[BlackElo "2468"]
[Result "0-1"]
[Round "02"]
[TimeControl "180+2"]
[Date "2023.05.30"]
[WhiteClock "0:00:00"]
[BlackClock "0:00:36"]

1. e4 {[%clk 0:03:00]}  g6 {[%clk 0:02:55]} 2. d4 {[%clk 0:02:59]}  Bg7 {[%clk 0:02:51]} 3. Nf3 {[%clk 0:02:59]}  d6 {[%clk 0:02:50]} 4. Nc3 {[%clk 0:02:59]}  a6 {[%clk 0:02:50]} 5. a4 {[%clk 0:02:50]}  b6 {[%clk 0:02:45]} 6. Be3 {[%clk 0:02:46]}  Bb7 {[%clk 0:02:44]} 7. h3 {[%clk 0:02:40]}  e6 {[%clk 0:02:43]} 8. Bc4 {[%clk 0:02:38]}  Nd7 {[%clk 0:02:42]} 9. O-O {[%clk 0:02:38]}  Ne7 {[%clk 0:02:42]} 10. Bb3 {[%clk 0:02:28]}  h6 {[%clk 0:02:40]} 11. Re1 {[%clk 0:02:28]}  g5 {[%clk 0:02:39]} 12. Qd2 {[%clk 0:02:19]}  Ng6 {[%clk 0:02:38]} 13. d5 {[%clk 0:01:56]}  Nde5 {[%clk 0:02:22]} 14. Nxe5 {[%clk 0:01:51]}  Bxe5 {[%clk 0:02:07]} 15. dxe6 {[%clk 0:01:48]}  fxe6 {[%clk 0:02:06]} 16. Bxe6 {[%clk 0:01:46]}  Qf6 {[%clk 0:02:00]} 17. Bd5 {[%clk 0:01:42]}  O-O-O {[%clk 0:01:44]} 18. Bxb7+ {[%clk 0:01:40]}  Kxb7 {[%clk 0:01:44]} 19. Nd5 {[%clk 0:01:18]}  Qf7 {[%clk 0:01:44]} 20. Qb4 {[%clk 0:01:15]}  a5 {[%clk 0:01:31]} 21. Qb5 {[%clk 0:01:08]}  Qd7 {[%clk 0:01:29]} 22. Qb3 {[%clk 0:01:08]}  Qc6 {[%clk 0:01:23]} 23. Rad1 {[%clk 0:00:55]}  Nf4 {[%clk 0:01:22]} 24. Bxf4 {[%clk 0:00:45]}  gxf4 {[%clk 0:01:22]} 25. Rd3 {[%clk 0:00:39]}  Rh7 {[%clk 0:01:14]} 26. Kh1 {[%clk 0:00:14]}  Rg7 {[%clk 0:01:13]} 27. Rg1 {[%clk 0:00:11]}  Rdg8 {[%clk 0:01:13]} 28. Qb5 {[%clk 0:00:07]}  Qxc2 {[%clk 0:01:00]} 29. Rb3 {[%clk 0:00:00]}  Rxg2 {[%clk 0:00:36]} 0-1


[Site "https://www.chess.com"]

[Event "Titled Tuesday Blitz May 30 Early 2023"]
[White "Bashkansky, Ethan"]
[Black "Arabidze, Meri"]
[WhiteFideId "2071533"]
[BlackFideId "13604040"]
[WhiteElo "2314"]
[BlackElo "2405"]
[Result "1-0"]
[Round "02"]
[TimeControl "180+2"]
[Date "2023.05.30"]
[WhiteClock "0:00:08"]
[BlackClock "0:00:04"]

1. d4 {[%clk 0:03:00]}  d5 {[%clk 0:02:59]} 2. c4 {[%clk 0:03:01]}  dxc4 {[%clk 0:03:00]} 3. Nf3 {[%clk 0:03:01]}  Nf6 {[%clk 0:02:59]} 4. e3 {[%clk 0:03:01]}  Bg4 {[%clk 0:02:59]} 5. Bxc4 {[%clk 0:03:01]}  e6 {[%clk 0:03:00]} 6. O-O {[%clk 0:03:01]}  Nc6 {[%clk 0:03:00]} 7. Nbd2 {[%clk 0:03:00]}  Bd6 {[%clk 0:02:59]} 8. h3 {[%clk 0:02:59]}  Bh5 {[%clk 0:02:59]} 9. b3 {[%clk 0:02:53]}  O-O {[%clk 0:02:58]} 10. Bb2 {[%clk 0:02:53]}  Re8 {[%clk 0:02:53]} 11. Rc1 {[%clk 0:02:49]}  e5 {[%clk 0:02:50]} 12. dxe5 {[%clk 0:02:37]}  Nxe5 {[%clk 0:02:51]} 13. Be2 {[%clk 0:02:37]}  Nxf3+ {[%clk 0:02:47]} 14. Bxf3 {[%clk 0:02:32]}  Bxf3 {[%clk 0:02:22]} 15. Qxf3 {[%clk 0:02:21]}  Be7 {[%clk 0:02:06]} 16. Rfd1 {[%clk 0:02:10]}  c6 {[%clk 0:01:50]} 17. Ne4 {[%clk 0:01:55]}  Nd5 {[%clk 0:01:47]} 18. Nc3 {[%clk 0:01:50]}  Bf6 {[%clk 0:01:45]} 19. e4 {[%clk 0:01:43]}  Bg5 {[%clk 0:00:54]} 20. Rc2 {[%clk 0:01:07]}  Nb4 {[%clk 0:00:50]} 21. Rxd8 {[%clk 0:01:06]}  Raxd8 {[%clk 0:00:51]} 22. Re2 {[%clk 0:00:58]}  Nd3 {[%clk 0:00:51]} 23. Nd1 {[%clk 0:00:45]}  Ne5 {[%clk 0:00:42]} 24. Bxe5 {[%clk 0:00:27]}  Rxd1+ {[%clk 0:00:42]} 25. Kh2 {[%clk 0:00:27]}  Rxe5 {[%clk 0:00:43]} 26. Qg4 {[%clk 0:00:20]}  Bf6 {[%clk 0:00:26]} 27. f4 {[%clk 0:00:18]}  Re8 {[%clk 0:00:24]} 28. e5 {[%clk 0:00:18]}  Be7 {[%clk 0:00:21]} 29. f5 {[%clk 0:00:18]}  Bc5 {[%clk 0:00:17]} 30. h4 {[%clk 0:00:11]}  Bg1+ {[%clk 0:00:11]} 31. Kh3 {[%clk 0:00:10]}  Rd3+ {[%clk 0:00:11]} 32. g3 {[%clk 0:00:10]}  h6 {[%clk 0:00:09]} 33. h5 {[%clk 0:00:09]}  Bc5 {[%clk 0:00:08]} 34. f6 {[%clk 0:00:09]}  Bf8 {[%clk 0:00:08]} 35. e6 {[%clk 0:00:08]}  fxe6 {[%clk 0:00:07]} 36. f7+ {[%clk 0:00:08]}  Kxf7 {[%clk 0:00:06]} 37. Qg6+ {[%clk 0:00:09]}  Kg8 {[%clk 0:00:03]} 38. Qxe8 {[%clk 0:00:09]}  Rd5 {[%clk 0:00:02]} 39. Qxe6+ {[%clk 0:00:09]}  Kh7 {[%clk 0:00:02]} 40. Qg6+ {[%clk 0:00:09]}  Kg8 {[%clk 0:00:02]} 41. Re8 {[%clk 0:00:10]}  Rg5 {[%clk 0:00:01]} 42. Qe6+ {[%clk 0:00:06]}  Kh7 {[%clk 0:00:02]} 43. Qe4+ {[%clk 0:00:05]}  Kg8 {[%clk 0:00:02]} 44. Qe6+ {[%clk 0:00:06]}  Kh7 {[%clk 0:00:02]} 45. Rxf8 {[%clk 0:00:07]}  Rxh5+ {[%clk 0:00:03]} 46. Kg4 {[%clk 0:00:07]}  Rg5+ {[%clk 0:00:03]} 47. Kf4 {[%clk 0:00:07]}  h5 {[%clk 0:00:03]} 48. Qg8+ {[%clk 0:00:08]}  Kh6 {[%clk 0:00:03]} 49. Rd8 {[%clk 0:00:09]}  Rg4+ {[%clk 0:00:03]} 50. Kf3 {[%clk 0:00:09]}  g6 {[%clk 0:00:03]} 51. Qh8+ {[%clk 0:00:08]}  Kg5 {[%clk 0:00:03]} 52. Qe5+ {[%clk 0:00:08]}  Kh6 {[%clk 0:00:04]} 53. Rh8# {[%clk 0:00:08]} 1-0


[Site "https://www.chess.com"]

[Event "Titled Tuesday Blitz May 30 Early 2023"]
[White "Atoufi, Pedram"]
[Black "Bernabeu Lopez, Carlos Javier"]
[WhiteFideId "12501654"]
[BlackFideId "2235366"]
[WhiteElo "2228"]
[BlackElo "2344"]
[Result "1-0"]
[Round "02"]
[TimeControl "180+2"]
[Date "2023.05.30"]
[WhiteClock "0:01:14"]
[BlackClock "0:01:43"]

1. e4 {[%clk 0:03:00]}  e5 {[%clk 0:03:00]} 2. Nc3 {[%clk 0:02:58]}  Nf6 {[%clk 0:03:00]} 3. Nf3 {[%clk 0:02:58]}  Nc6 {[%clk 0:03:00]} 4. d4 {[%clk 0:02:57]}  exd4 {[%clk 0:03:01]} 5. Nxd4 {[%clk 0:02:57]}  Nxe4 {[%clk 0:03:01]} 6. Nxe4 {[%clk 0:02:58]}  Qe7 {[%clk 0:03:01]} 7. f3 {[%clk 0:02:57]}  d5 {[%clk 0:03:00]} 8. Nb5 {[%clk 0:02:56]}  dxe4 {[%clk 0:02:58]} 9. fxe4 {[%clk 0:02:54]}  Qh4+ {[%clk 0:02:39]} 10. g3 {[%clk 0:02:34]}  Qxe4+ {[%clk 0:02:39]} 11. Qe2 {[%clk 0:02:34]}  Qxe2+ {[%clk 0:02:39]} 12. Bxe2 {[%clk 0:02:33]}  Bd6 {[%clk 0:02:40]} 13. Bf4 {[%clk 0:02:32]}  Ne5 {[%clk 0:02:36]} 14. Rd1 {[%clk 0:02:19]}  Ke7 {[%clk 0:02:34]} 15. O-O {[%clk 0:02:16]}  f6 {[%clk 0:02:33]} 16. Bf3 {[%clk 0:02:14]}  Bd7 {[%clk 0:02:26]} 17. Nxd6 {[%clk 0:02:11]}  cxd6 {[%clk 0:02:27]} 18. b3 {[%clk 0:02:10]}  Bc6 {[%clk 0:02:23]} 19. Be2 {[%clk 0:02:02]}  Rad8 {[%clk 0:02:20]} 20. Rd4 {[%clk 0:01:58]}  b6 {[%clk 0:02:17]} 21. a4 {[%clk 0:01:54]}  Rhe8 {[%clk 0:02:14]} 22. Bd2 {[%clk 0:01:53]}  Bb7 {[%clk 0:02:07]} 23. a5 {[%clk 0:01:50]}  Nc6 {[%clk 0:02:05]} 24. Rh4 {[%clk 0:01:48]}  h6 {[%clk 0:02:02]} 25. Bh5 {[%clk 0:01:44]}  Rh8 {[%clk 0:01:58]} 26. axb6 {[%clk 0:01:37]}  axb6 {[%clk 0:01:59]} 27. Bf3 {[%clk 0:01:34]}  Kd7 {[%clk 0:01:55]} 28. Rg4 {[%clk 0:01:33]}  g5 {[%clk 0:01:49]} 29. Bxc6+ {[%clk 0:01:29]}  Bxc6 {[%clk 0:01:49]} 30. Rd4 {[%clk 0:01:28]}  Rdf8 {[%clk 0:01:50]} 31. Bb4 {[%clk 0:01:26]}  d5 {[%clk 0:01:46]} 32. Bxf8 {[%clk 0:01:25]}  Rxf8 {[%clk 0:01:47]} 33. c4 {[%clk 0:01:25]}  f5 {[%clk 0:01:46]} 34. cxd5 {[%clk 0:01:23]}  Bb5 {[%clk 0:01:47]} 35. Re1 {[%clk 0:01:22]}  f4 {[%clk 0:01:47]} 36. gxf4 {[%clk 0:01:22]}  gxf4 {[%clk 0:01:48]} 37. Re6 {[%clk 0:01:17]}  f3 {[%clk 0:01:48]} 38. Kf2 {[%clk 0:01:17]}  Be2 {[%clk 0:01:48]} 39. Ra4 {[%clk 0:01:15]}  Rg8 {[%clk 0:01:45]} 40. Ra7+ {[%clk 0:01:14]}  Kd8 {[%clk 0:01:43]} 41. Ra8+ {[%clk 0:01:14]} 1-0


[Site "https://www.chess.com"]